Cogmind - Beta 16 @@@ ROGUE MODE // 2026.01.22 @ 10:31:29 Player: Ae Result: Destroyed by D-53 Grenadier with Mini Grenade Launcher Performance ------------- Evolutions (0) 0 Regions Visited (2) 400 Robots Destroyed (20) 100 Value Destroyed (517) 517 Prototype IDs (2) 40 Alien Tech Used (0) 0 Bonus (0) 0 TOTAL SCORE: 1057 Bonus ------- None Cogmind --------- Core Integrity 0/250 Matter 300/300 Energy 100/100 System Corruption 0% Temperature Cool (0) Movement Core (250) Ox4 Location -10/Mines Parts ------- > --- POWER (1) -------- (None) > --- PROPULSION (2) --- Light Treads > --- UTILITY (2) ------ Medium Storage Unit > --- WEAPON (2) ------- Particle Gun Assault Rifle > --- INVENTORY (10) --- Light Treads Aluminum Leg Aluminum Leg Compact Wheel Improved Heat Sink Improved Terrain Scanner EM Shotgun EM Shotgun Rocket Launcher Peak State ------------ > --- POWER ------------ Ion Engine > --- PROPULSION ------- Light Treads Wheel > --- UTILITY ---------- Improved Heat Sink Medium Storage Unit > --- WEAPON ----------- Particle Gun Assault Rifle > --- INVENTORY -------- Light Treads Aluminum Leg Aluminum Leg Compact Wheel EM Shotgun EM Shotgun Rocket Launcher [Rating: 11] Favorites ----------- Power Ion Engine Engine Ion Engine Propulsion Wheel Treads Light Treads Wheel Wheel Utility Medium Storage Unit Device Seismic Detector Storage Medium Storage Unit Weapon Assault Rifle Energy Gun Small Laser Ballistic Gun Assault Rifle Build | -11 -10 -10 ------- Run | Yrd Mat Min Slots Evolved . | . . . Power . | . . . Propulsion . | . . . Utility . | . . . Weapon . | . . . Parts Attached 15 | 8 6 1 Power 2 | 1 1 . Engine 2 | 1 1 . Core . | . . . Reactor . | . . . Propulsion 4 | 2 2 . Treads 1 | . 1 . Leg . | . . . Wheel 3 | 2 1 . Hover . | . . . Flight . | . . . Utility 5 | 2 2 1 Device 3 | 1 1 1 Storage 2 | 1 1 . Processor . | . . . Hackware . | . . . Protection . | . . . Artifact . | . . . Weapon 4 | 3 1 . Energy Gun 2 | 1 1 . Energy Cannon . | . . . Ballistic Gun 2 | 2 . . Ballistic Cannon . | . . . Launcher . | . . . Special Weapon . | . . . Impact Weapon . | . . . Slashing Weapon . | . . . Piercing Weapon . | . . . Special Melee Weapon . | . . . Unidentified Prototypes . | . . . Parts Lost 9 | . 6 3 Power 2 | . 1 1 Propulsion 3 | . 2 1 Utility 2 | . 1 1 Weapon 2 | . 2 . Highest Loss Streak 4 | . 4 3 To Critical Strikes . | . . . Average Backups 5 | 3 5 7 Power . | . . . Propulsion 3 | 2 3 4 Utility . | . . . Weapon 1 | . 1 3 Tool/Special . | . . . Unused Backups 7 | . . 7 Power . | . . . Propulsion 3 | . . 3 Utility 1 | . . 1 Weapon 3 | . . 3 Tool/Special . | . . . Average Slot Usage (%) 96 | . 96 97 Engine 13 | . 13 14 Treads 6 | . 4 14 Wheel 20 | . 21 14 Device 13 | . 13 11 Storage 14 | . 14 14 Energy Gun 13 | . 13 14 Ballistic Gun 14 | . 14 14 Peak Build Rating 11 | 7 11 11 Average Rating 7 | 5 7 9 On Entrance 6 | . 7 11 Avg Prop Armor Cover (%) 12 | . 12 12 Naked Turns . | . . . Heaviest Build 21 | 14 21 21 Greatest Support 26 | 26 26 10 Greatest Overweight (x) 2 | . 2 2 Average Overweight (x) . | . . 1 Largest Inventory Capacity 10 | 8 10 10 Average Capacity 9 | 7 9 10 Most Carried 9 | 7 7 9 Average Carried 5 | 3 5 7 Final Capacity 10 | 8 10 10 Final Carried 9 | 6 7 9 Class Distribution -------------------- 100% | Mutant Dominant Class ---------------- Mutant | -10/Materials Mutant | -10/Mines Resources | -11 -10 -10 ----------- Run | Yrd Mat Min Matter Collected 510 | 243 230 37 Remotely . | . . . Salvage Created 789 | 98 555 136 Parts 41 | 3 28 10 Haulers Intercepted . | . . . Recyclers Shooed 3 | . 2 1 Parts Field Recycled . | . . . Retrieved Matter . | . . . Parts Self-Destructed . | . . . Prevented . | . . . Parts Restored . | . . . Kills | -11 -10 -10 ------- Run | Yrd Mat Min Combat Hostiles Destroyed 15 | . 13 2 Guns 15 | . 13 2 Classes Destroyed 5 | 2 2 1 Worker 1 | . . 1 Tunneler 2 | 1 . 1 Recycler 2 | 1 1 . Swarmer 3 | . 3 . Grunt 12 | . 10 2 Best Kill Streak 5 | 2 5 2 Combat Bots Only 3 | . 3 2 Max Kills in Single Turn 1 | 1 1 1 Gunslinging . | . . . Exploded . | . . . Melee . | . . . Uniques/NPCs Destroyed . | . . . Combat | -11 -10 -10 -------- Run | Yrd Mat Min Hostile Shots Fired 91 | . 74 17 Missed 23 | . 20 3 Hits 68 | . 54 14 Projectile 68 | . 54 14 AOE 6 | . . 6 Damage Taken 964 | . 643 321 Core 250 | . 172 78 Absorbed by Shields . | . . . Core Remaining (%) 100 | 100 . . Volleys Fired 60 | 5 45 10 Largest 2 | 2 2 2 Hottest 85 | 60 85 85 Shots Fired 112 | 10 82 20 Gun 112 | 10 82 20 Cannon . | . . . Launcher . | . . . Special . | . . . Kinetic 61 | 5 46 10 Thermal 51 | 5 36 10 Explosive . | . . . Electromagnetic . | . . . Robot Hit Streak 17 | 3 10 17 Robot Miss Streak 2 | 1 1 2 Penetration Max . | . . . Secondary Targets . | . . . Shots Hit Robots 86 | 7 65 14 Core Hits 36 | 3 27 6 Critical Kills . | . . . Critical Parts Destroyed . | . . . Critical Strikes . | . . . Melee Attacks . | . . . Impact . | . . . Slashing . | . . . Piercing . | . . . Sneak Attacks . | . . . Combat Hostiles . | . . . Follow-up Attacks . | . . . Damage Inflicted 1118 | 80 833 205 Guns 1118 | 80 833 205 Cannons . | . . . Explosions . | . . . Melee . | . . . Ramming . | . . . Kinetic 592 | 60 455 77 Thermal 526 | 20 378 128 Explosive . | . . . Electromagnetic . | . . . Impact . | . . . Slashing . | . . . Piercing . | . . . Highest Corruption . | . . . Average Corruption . | . . . Corruption Purged . | . . . Corruption Blocked . | . . . Overload Shots . | . . . Overflow Damage . | . . . Projectiles . | . . . Explosions . | . . . Melee . | . . . Knockbacks . | . . . Impact . | . . . Kinetic . | . . . Secondary . | . . . Self-Inflicted Damage . | . . . Shots . | . . . Rammed . | . . . Targets Rammed . | . . . Kicked . | . . . Crushed . | . . . Highest Temperature 78 | . 78 24 Average Temperature 29 | . 33 12 Received Heat Transfer 375 | . 312 63 Siege Activations . | . . . Martial Activations . | . . . Shielding Activations . | . . . Robots Disrupted . | . . . Combat Hostiles . | . . . Robots Corrupted . | . . . Combat Hostiles . | . . . Parts Fried . | . . . Impact Corruptions . | . . . Robots Melted . | . . . Combat Hostiles . | . . . Parts Melted 1 | . . 1 Heat Transferred 1168 | 50 822 296 Parts Sabotaged . | . . . Parts Stolen . | . . . Parts Stripped . | . . . Power Chain Reactions . | . . . Alert | -11 -10 -10 ------- Run | Yrd Mat Min Maximum Alert Level . | . . . Low Security (%) 100 | 100 100 100 Level 1 . | . . . Level 2 . | . . . Level 3 . | . . . Level 4 . | . . . Level 5 . | . . . High Security . | . . . Max Security . | . . . Peak Influence 136 | 10 136 93 Initial 43 | . . 43 Average 65 | 1 74 66 Influence Increases 483 | 10 413 60 Destroy 0b10 Robot/C 300 | . 260 40 Destroy 0b10 Robot/NC 25 | 10 5 10 Destroy Leader 60 | . 50 10 Successful Hack 21 | . 21 . Select Force Hacks 30 | . 30 . Destroy Structure 2 | . 2 . Partial Spotted 15 | . 15 . Lose Combat Pursuer 30 | . 30 . Influence Decreases 470 | 10 302 158 Entered New Map 68 | . . 68 Time Decay 302 | 10 232 60 Lost Part 90 | . 60 30 Lost Ally 10 | . 10 . Squads Dispatched 1 | . 1 . Investigation 1 | . 1 . Extermination . | . . . Reinforcement . | . . . Assault . | . . . Garrison . | . . . Intercept . | . . . Searches Triggered . | . . . Construction Impeded . | . . . Haulers Reinforced . | . . . Active Scanning Responses . | . . . Cargo Convoy Interrupts . | . . . Stealth | -11 -10 -10 --------- Run | Yrd Mat Min Distress Signals 2 | . 2 . Communications Jammed . | . . . Distress Signals . | . . . Times Spotted 25 | . 20 5 Peak Tracking Total 5 | . 5 2 Tactical Retreats 1 | . 1 . Traps | -11 -10 -10 ------- Run | Yrd Mat Min Traps Triggered . | . . . Indirectly . | . . . Trap Hack Attempts . | . . . Triggered . | . . . Disarmed 6 | . 6 . Reprogrammed . | . . . Reused . | . . . Traps Extracted . | . . . Installed . | . . . Triggered . | . . . Machines | -11 -10 -10 ---------- Run | Yrd Mat Min Machines Disabled . | . . . Max in Single Turn . | . . . Machines Repaired . | . . . Machines Dismantled . | . . . Machines Sabotaged . | . . . Overloaded Fab Kills . | . . . Hacking | -11 -10 -10 --------- Run | Yrd Mat Min Machines Accessed 5 | . 5 . Terminals 4 | . 4 . Fabricators . | . . . Repair Stations . | . . . Recycling Units 1 | . 1 . Scanalyzers . | . . . Garrison Access . | . . . Total Hacks 22 | . 22 . Successful 18 | . 18 . Failed 3 | . 3 . Catastrophic . | . . . Database Lockouts 1 | . 1 . Manual 22 | . 22 . Terminals 21 | . 21 . Fabricators . | . . . Repair Stations . | . . . Recycling Units 1 | . 1 . Scanalyzers . | . . . Garrison Access . | . . . Terminal Hacks 9 | . 9 . Robot Analysis 7 | . 7 . Prototype ID Bank 1 | . 1 . Disarm Traps 1 | . 1 . Fabricator Hacks . | . . . Repair Station Hacks . | . . . Recycling Unit Hacks . | . . . Scanalyzer . | . . . Garrison Access Hacks . | . . . Unauthorized Hacks 9 | . 9 . Terminals 8 | . 8 . Assimilate 1 | . 1 . Botnet 4 | . 4 . Operators 1 | . 1 . Skim 2 | . 2 . Fabricators . | . . . Repair Stations . | . . . Recycling Units 1 | . 1 . Tunnel 1 | . 1 . Scanalyzers . | . . . Garrison Access . | . . . Data Cores Recovered . | . . . Used . | . . . Hacking Detections 4 | . 4 . Full Trace Events . | . . . Feedback Events . | . . . Feedback Blocked . | . . . Robot Schematics Acquired . | . . . Robots Built . | . . . Authchips . | . . . Time . | . . . Total Robot Build Rating . | . . . Part Schematics Acquired . | . . . Parts Built . | . . . Authchips . | . . . Time . | . . . Total Part Build Rating . | . . . Part Studies Acquired . | . . . Parts Repaired . | . . . Time . | . . . Parts Recycled . | . . . Recycled Matter . | . . . Retrieved Matter . | . . . Retrieved Components . | . . . Parts Scanalyzed . | . . . Part Schematics Acquired . | . . . Parts Damaged . | . . . Bothacking | -11 -10 -10 ------------ Run | Yrd Mat Min Used RIF Installer . | . . . Robots Hacked . | . . . Non-combat . | . . . Combat . | . . . Robot Hacks Applied . | . . . Relay Couplers Released . | . . . Fabnet Peak Effective % . | . . . Robots Rewired . | . . . Allies Hacked . | . . . Hacks Repelled . | . . . Allies | -11 -10 -10 -------- Run | Yrd Mat Min Total Allies 1 | . 1 . Largest Group 1 | . 1 . Highest-Rated Group 10 | . 10 . Highest-Rated Ally 10 | . 10 . Total Orders 2 | . 2 . STAY 1 | . 1 . FOLLOW 1 | . 1 . Ally Attacks . | . . . Total Damage . | . . . Kills . | . . . Allies Corrupted . | . . . Allies Melted . | . . . Intel | -11 -10 -10 ------- Run | Yrd Mat Min Active Infowar (turns) 364 | 15 309 40 Seismic 364 | 15 309 40 Robot Analysis Total 7 | . 7 . Derelict Logs Recovered 1 | . . 1 Drone Launches . | . . . Drone Recoveries . | . . . Exploration | -11 -10 -10 ------------- Run | Yrd Mat Min Turns Passed 725 | 74 531 120 Spaces Moved 460 | 47 332 81 Core 5 | 5 . . Treads . | . . . Legs . | . . . Wheels 455 | 42 332 81 Hover . | . . . Flight . | . . . Fastest Speed 50 | 50 90 95 Average Speed 99 | 85 99 106 Slowest Speed 115 | 100 115 110 Overloaded Moves . | . . . Propulsion Burnouts . | . . . Robots Hopped . | . . . Potential Cave-ins . | . . . Cave-ins Triggered . | . . . Exploration Rate (%) 29 | 5 60 23 Regions Visited 2 Branch Regions 1 Pre-discovered Areas 1 | . 1 . Known Exits Taken . | . . . Unknown Exits Taken 2 | 1 1 . Scrap Searched . | . . . Spaces Dug . | . . . Terrain Destroyed . | . . . Melee . | . . . Projectile . | . . . AOE . | . . . Terrain Rammed . | . . . Walls Destroyed . | . . . Machines Disabled . | . . . Actions | -11 -10 -10 --------- Run | Yrd Mat Min Total 608 | 66 448 94 Wait 60 | . 60 . Move 458 | 46 331 81 Hop . | . . . Pick Up 13 | 7 4 2 Fast Attach 9 | 6 3 . Attach 4 | 1 3 . Detach . | . . . Swap 3 | 1 1 1 Drop 1 | . 1 . Fire 60 | 5 45 10 Melee . | . . . Ram . | . . . Kick . | . . . Crush . | . . . Escape Stasis . | . . . Rewire . | . . . Trap . | . . . Miscellaneous . | . . . Route ------- -11/Scrapyard -10/Materials (discovered 3 exits: [*Mat x2] / [*Min]) -10/Mines History --------- Turn | Location | Event 23 | -11/Scrapyard | Discovered new exit (range 16) 75 | -11/Scrapyard | Entered Materials 163 | -10/Materials | Central database locked down 165 | -10/Materials | Discovered new exit (range 15) 300 | -10/Materials | Build established: Mutant 430 | -10/Materials | Core integrity fell below 50% 461 | -10/Materials | Discovered new exit (range 10) 464 | -10/Materials | Lost 4 parts (1p1n2w) 497 | -10/Materials | Discovered new exit (range 4) 606 | -10/Materials | Entered Mines 609 | -10/Mines | Core integrity fell below 20% 648 | -10/Mines | Learned 2 Materials zone layouts 686 | -10/Mines | Assembled infested the area 726 | -10/Mines | Destroyed by D-53 Grenadier with Mini Grenade Launcher Last Messages --------------- 00624_ Acquired 18 matter. 00646_ K-01 Serf collects debris. 00648_ Acquired derelict log, extracted data. Data stored: Materials zone layouts (x2). 00650_ K-01 Serf collects debris. 00659_ K-01 Serf destroyed. 00662_ T-07 Excavator destroyed. 00666_ Acquired Seismic Detector. 00669_ Acquired 19 matter. 00671_ Acquired Imp. Terrain Scanner. 00686_ ALERT: Infestation in the mines, dispatching Demolisher response squad. 00707_ C-45 Heavy ARC bursts open, deploying its payload. 00707_ D-53 Grenadier unfolds itself. 00707_ U-05 Engineer destroyed. 00707_ Seismic Detector destroyed. 00708_ R-06 Scavenger destroyed. 00714_ The unstable cave ceiling collapses. 00726_ Ion Engine destroyed. 00726_ Wheel destroyed. Map ----- +----------------------------------------------------+ | | | | | | | | | | | | | ?????????????????????????????????????????????????? | | ?????????????????????????????????????????????????? | | ?????????????????????????????????????????????????? | | ?????????????????????????????????????????????????? | | ?????????????????????????????????????????????????? | | ?????????????????????????????????????????????????? | | ?????????????????????????????# ??????????????????? | | ????????????????????????????# ???????????????????? | | ???????????????????????????? ???????????????????? | | ???????????????????????????# ???????????????????? | | ???????????????????###???## ???????????????????? | | ??????????????????## ### ????????????????????? | | ??????????????????# ????????????????????? | | ??????????????????# ?????????????????????? | | ???????????????????# ?????????????????????? | | ???????????# ??????# #?????????????????????? | | ???????????# ??????# #?????????????????????? | | ??????????## #????## #?????????????????????? | | ????????? ##### #?????????????????????? | | ???????????# @ #?????????????????????? | | ???????????# #?????????????????????? | | ???????????# ##?????????????????????? | | ???????????## ##??????????????????????? | | ????????????###### #???? #????????????????? | | ????????????????## #### ##???????????????? | | ???????????????## ##??????????????? | | ???????????????# #??????????????? | | ???????????????# #??????????????? | | ???????????????## d ## ##??????????????? | | ????????????????# # ##??####???????????????? | | ????????????????## ## ##??????????????????????? | | ????????????????# #?##???????????????????????? | | ????????????????## #####??????????????????????? | | ????????????????### # ##?????????????????????? | | ??????????????????# ##????????????????????? | | ??????????????????# #????????????????????? | | ??????????????????### ##########????????????? | | ???????????????????# # #?# #????????????? | | ??????????????????# #?# #????????????? | | ??????????????????# ![= ### % #????????????? | | ??????????????????## # =%= %*#????????????? | | ???????????????????## *# ## # #????????????? | | ????????????????????##%*#### ########????????????? | | ?????????????????????# |#??# #???????????????????? | +----------------------------------------------------+ Best States ------------- Heat Dissipation 39 Energy Generation 10 Energy Capacity 250 Matter Stores 300 Matter Capacity 300 Sight Range 16 Terrain Scan Density 10 Evasion (%) 42 Item Schematics ----------------- None Robot Schematics ------------------ None Fabricated ------------ Nothing Repaired ---------- Nothing Studied --------- None Alien Tech Used ----------------- None Achievements -------------- None Challenges ------------ None Game ------ Seed CryofiberHybridLegs Manual? 0 Play Time 00:14:43 Cumulative 108.8 hours Start 2026.01.22 @ 10:13:11 End 2026.01.22 @ 10:31:29 Sessions 3 Manual Loads 0 Difficulty Rogue Special Mode None Game No. 183 Rogue 155 Adventurer 28 Explorer 0 Win Type - Total 0 Types 0/0/0/0/0/0/0/0/0/0 Lore% 44 Gallery% 33 Achievement% 25 Wizard Run 0 Options --------- Layout 0 ASCII 0 Keyboard 1 Movement Numpad Keybinds 0 Fullscreen 1 Font 36/Smallcaps Map View 76x50 Zoom Use 0% Tactical HUD 1 Map Filters NONE Filters NONE Steam 1 RUN: b9572b23-9ccf-46e7-8523-6d9a2855741c